fUSD/lending_fUSD_20250103
["ID","MTS","AMOUNT","RATE_DAILY","PERIOD"]
[347514353,1735897855795,-1854.01,9.27e-05,2]
[347514354,1735897855804,-500.0,9.27e-05,2]
[347514355,1735897855814,-1951.1,9.27e-05,2]
[347514356,1735897855823,-1960.12,9.27e-05,2]
[347514357,1735897855832,-500.0,9.27e-05,2]
[347514358,1735897855841,-500.0,9.27e-05,2]
[347514359,1735897855850,-2911.89,9.27e-05,2]
[347514360,1735897855859,-968.36,9.27e-05,2]
[347514361,1735897855868,-577.26,9.27e-05,2]
[347514362,1735897855877,-1165.94,9.27e-05,2]
[347514363,1735897855886,-500.0,9.27e-05,2]
[347514364,1735897855896,-1266.94,9.27e-05,2]
[347514365,1735897855905,-995.54,9.27e-05,2]
[347514366,1735897855914,-1666.22,9.27e-05,2]
[347514367,1735897855923,-500.0,9.27e-05,2]
[347514368,1735897855932,-2142.14,9.27e-05,2]
[347514369,1735897855941,-614.86,9.27e-05,2]
[347514370,1735897855951,-500.0,9.27e-05,2]
[347514371,1735897855960,-500.0,9.27e-05,2]
[347514372,1735897855969,-2516.74,9.27e-05,2]
[347514373,1735897855978,-1912.36,9.27e-05,2]
[347514374,1735897855988,-502.81597827,9.27e-05,2]
[347514375,1735897855998,-500.0,9.27e-05,2]
[347514376,1735897856007,-500.0,9.27e-05,2]
[347514377,1735897856017,-500.0,9.27e-05,2]
[347514378,1735897856028,-741.84,9.27e-05,2]
[347514379,1735897856038,-1208.98,9.27e-05,2]
[347514380,1735897856047,-690.05,9.27e-05,2]
[347514381,1735897856056,-500.0,9.27e-05,2]
[347514382,1735897856067,-1004.2,9.27e-05,2]
[347514383,1735897856076,-1855.53,9.27e-05,2]
[347514384,1735897856086,-761.54,9.27e-05,2]
[347514385,1735897856095,-1606.57,9.27e-05,2]
[347514386,1735897856106,-501.61,9.27e-05,2]
[347514387,1735897856119,-500.0,9.27e-05,2]
[347514388,1735897856128,-502.32382508,9.27e-05,2]
[347514389,1735897856137,-2964.79,9.27e-05,2]
[347514390,1735897856146,-500.0,9.27e-05,2]
[347514391,1735897856156,-500.0,9.27e-05,2]
[347514392,1735897856165,-1803.24,9.27e-05,2]
[347514393,1735897856174,-502.85386322,9.27e-05,2]
[347514394,1735897856183,-500.0,9.27e-05,2]
[347514395,1735897856195,-500.0,9.27e-05,2]
[347514396,1735897856203,-500.0,9.27e-05,2]
[347514397,1735897856213,-707.58,9.27e-05,2]
[347514398,1735897856222,-1125.71,9.27e-05,2]
[347514399,1735897856231,-619.54,9.27e-05,2]
[347514400,1735897856242,-500.0,9.27e-05,2]
[347514401,1735897856251,-500.0,9.27e-05,2]
[347514402,1735897856261,-2292.62,9.27e-05,2]
[347514403,1735897856270,-522.4888022,9.27e-05,2]
[347514404,1735897856280,-500.0,9.27e-05,2]
[347514405,1735897856289,-553.62,9.27e-05,2]
[347514406,1735897856298,-289.51960154,9.27e-05,2]
[347514407,1735897856307,-731.01,9.27e-05,2]
[347514408,1735897856316,-1891.06,9.27e-05,2]
[347514409,1735897856325,-1491.69,9.27e-05,2]
[347514410,1735897856566,-1392.52,9.27e-05,2]
[347514411,1735897856576,-656.42,9.27e-05,2]
[347514412,1735897856586,-500.0,9.27e-05,2]
[347514413,1735897856595,-500.0,9.27e-05,2]
[347514414,1735897856604,-540.46,9.27e-05,2]
[347514415,1735897856614,-512.86,9.27e-05,2]
[347514416,1735897856623,-2680.38,9.27e-05,2]
[347514417,1735897856632,-917.15,9.27e-05,2]
[347514418,1735897856641,-2492.71,9.27e-05,2]
[347514419,1735897856651,-500.0,9.27e-05,2]
[347514420,1735897856660,-1013.52,9.27e-05,2]
[347514421,1735897856669,-500.0,9.27e-05,2]
[347514422,1735897856678,-500.0,9.27e-05,2]
[347514423,1735897856687,-2766.0,9.27e-05,2]
[347514424,1735897856696,-500.0,9.27e-05,2]
[347514425,1735897856705,-502.02910293,9.27e-05,2]
[347514426,1735897856715,-500.0,9.27e-05,2]
[347514427,1735897856724,-3326.92,9.27e-05,2]
[347514428,1735897856734,-551.99,9.27e-05,2]
[347514429,1735897856744,-500.0,9.27e-05,2]
[347514430,1735897856754,-500.0,9.27e-05,2]
[347514431,1735897856763,-910.8,9.27e-05,2]
[347514432,1735897856773,-1549.13,9.27e-05,2]
[347514433,1735897856782,-1549.13,9.27e-05,2]
[347514434,1735897856793,-584.4,9.27e-05,2]
[347514435,1735897856803,-629.87401757,9.271e-05,2]
[347514436,1735897856812,-500.0,9.271e-05,2]
[347514437,1735897856822,-501.93279139,9.271e-05,2]
[347514438,1735897856832,-500.0,9.271e-05,2]
[347514439,1735897856842,-500.0,9.271e-05,2]
[347514440,1735897856851,-500.0,9.271e-05,2]
[347514441,1735897856861,-500.0,9.271e-05,2]
[347514442,1735897856870,-500.82321398,9.271e-05,2]
[347514443,1735897856881,-500.0,9.271e-05,2]
[347514444,1735897856890,-500.0,9.271e-05,2]
[347514445,1735897856900,-501.35458818,9.271e-05,2]
[347514446,1735897856910,-501.03903812,9.271e-05,2]
[347514447,1735897856919,-500.0,9.271e-05,2]
[347514448,1735897856929,-500.0,9.271e-05,2]
[347514449,1735897856938,-501.93853913,9.271e-05,2]
[347514450,1735897856947,-5289.67,9.271e-05,2]
[347514451,1735897856956,-501.4789636,9.271e-05,2]
[347514452,1735897856966,-502.47505461,9.271e-05,2]
[347514453,1735897856975,-301.14555245,9.271e-05,2]
[347514454,1735897856985,-5994.19,9.271e-05,2]
[347514455,1735897856995,-500.0,9.271e-05,2]
[347514456,1735897857005,-501.3582667,9.271e-05,2]
[347514457,1735897857015,-4238.37,9.271e-05,2]
[347514458,1735897857025,-448.2175815,9.271e-05,2]
[347514459,1735897857034,-500.0,9.271e-05,2]
[347514460,1735897857044,-500.0,9.271e-05,2]
[347514461,1735897857054,-500.0,9.271e-05,2]
[347514462,1735897857064,-500.0,9.271e-05,2]
[347514463,1735897857074,-7830.78,9.271e-05,2]
[347514464,1735897857083,-9688.5,9.271e-05,2]
[347514465,1735897857093,-500.0,9.271e-05,2]
[347514466,1735897857103,-500.0,9.271e-05,2]
[347514467,1735897857114,-501.35544198,9.271e-05,2]
[347514468,1735897857125,-500.0,9.271e-05,2]
[347514469,1735897857135,-1376.7,9.271e-05,2]
[347514470,1735897857145,-500.0,9.271e-05,2]
[347514471,1735897857154,-500.0,9.271e-05,2]
[347514472,1735897857163,-706.63577924,9.271e-05,2]
[347514473,1735897857172,-6370.19,9.271e-05,2]
[347514474,1735897857182,-500.0,9.271e-05,2]
[347514475,1735897857191,-12828.72,9.271e-05,2]
[347514476,1735897857200,-803.82,9.271e-05,2]
[347514477,1735897857210,-2135.2,9.271e-05,2]
[347514478,1735897857219,-1053.03,9.271e-05,2]
[347514479,1735897857229,-1069.87,9.271e-05,2]
[347514480,1735897857239,-1900.73,9.271e-05,2]
[347514481,1735897857249,-3505.1,9.271e-05,2]
[347514482,1735897857259,-1380.55,9.271e-05,2]
[347514483,1735897857268,-602.66147545,9.271e-05,2]
[347514484,1735897857278,-1778.86,9.271e-05,2]
[347514485,1735897857288,-1144.59,9.271e-05,2]
[347514486,1735897857298,-1841.26,9.271e-05,2]
[347514487,1735897857307,-1867.46,9.271e-05,2]
[347514488,1735897857317,-3841.48,9.271e-05,2]
[347514489,1735897857327,-2511.49,9.271e-05,2]
[347514490,1735897857336,-500.0,9.271e-05,2]
[347514491,1735897857345,-5884.72,9.271e-05,2]
[347514492,1735897857354,-3019.53,9.271e-05,2]
[347514493,1735897857364,-4183.98,9.271e-05,2]
[347514494,1735897857373,-552.26,9.271e-05,2]
[347514495,1735897857382,-1086.75,9.271e-05,2]
[347514496,1735897857392,-1946.39,9.271e-05,2]
[347514497,1735897857401,-500.0,9.271e-05,2]
[347514498,1735897857410,-500.0,9.271e-05,2]
[347514499,1735897857419,-1164.43,9.271e-05,2]
[347514500,1735897857429,-500.0,9.271e-05,2]
[347514501,1735897857438,-500.0,9.271e-05,2]
[347514502,1735897857448,-1914.54,9.271e-05,2]
[347514503,1735897857457,-5258.8,9.271e-05,2]
[347514504,1735897857467,-724.36,9.271e-05,2]
[347514505,1735897857476,-1624.15,9.271e-05,2]
[347514506,1735897857486,-1707.53,9.271e-05,2]
[347514507,1735897857495,-500.0,9.271e-05,2]
[347514508,1735897857504,-500.0,9.271e-05,2]
[347514509,1735897857514,-2942.33,9.271e-05,2]
[347514510,1735897857523,-2057.75,9.271e-05,2]
[347514511,1735897857532,-5583.05,9.271e-05,2]
[347514512,1735897857541,-1747.71,9.271e-05,2]
[347514513,1735897857551,-1703.88,9.271e-05,2]
[347514514,1735897857560,-500.0,9.271e-05,2]
[347514515,1735897857569,-2318.18,9.271e-05,2]
[347514516,1735897857578,-6516.24,9.271e-05,2]
[347514517,1735897857587,-1896.91,9.271e-05,2]
[347514518,1735897857595,-500.77485335,9.271e-05,2]
[347514519,1735897857605,-4176.54,9.271e-05,2]
[347514520,1735897857614,-576.95,9.271e-05,2]
[347514521,1735897857623,-2763.46,9.271e-05,2]
[347514522,1735897857632,-1299.93,9.271e-05,2]
[347514523,1735897857641,-8027.13,9.271e-05,2]
[347514524,1735897857650,-2956.54,9.271e-05,2]
[347514525,1735897857659,-1814.31,9.271e-05,2]
[347514526,1735897857668,-500.0,9.271e-05,2]
[347514527,1735897857677,-2268.5,9.271e-05,2]
[347514528,1735897857686,-2517.51,9.271e-05,2]
[347514529,1735897857695,-3138.74,9.271e-05,2]
[347514530,1735897857704,-1924.0,9.271e-05,2]
[347514531,1735897857713,-2349.43,9.271e-05,2]
[347514532,1735897857722,-1479.04,9.271e-05,2]
[347514533,1735897857731,-1845.0,9.271e-05,2]
[347514534,1735897857742,-1342.02,9.271e-05,2]
[347514535,1735897857751,-1466.27,9.271e-05,2]
[347514536,1735897857760,-3020.93,9.271e-05,2]
[347514537,1735897857769,-518.22675322,9.271e-05,2]
[347514538,1735897857778,-3134.09,9.271e-05,2]
[347514539,1735897857787,-3176.49,9.271e-05,2]
[347514540,1735897857795,-1882.48,9.271e-05,2]
[347514541,1735897857805,-3061.0,9.271e-05,2]
[347514542,1735897857813,-2621.89,9.271e-05,2]
[347514543,1735897857823,-10196.53,9.271e-05,2]
[347514544,1735897857832,-1405.22,9.271e-05,2]
[347514545,1735897857841,-2338.48,9.271e-05,2]
[347514546,1735897857850,-1340.74,9.271e-05,2]
[347514547,1735897857859,-1872.22,9.271e-05,2]
[347514548,1735897857868,-2097.87,9.271e-05,2]
[347514549,1735897857877,-500.0,9.271e-05,2]
[347514550,1735897857886,-1532.61,9.271e-05,2]
[347514551,1735897857895,-869.67,9.271e-05,2]
[347514552,1735897857905,-500.0,9.271e-05,2]
[347514553,1735897857914,-1725.81,9.271e-05,2]
[347514554,1735897857923,-2295.81,9.271e-05,2]
[347514555,1735897857932,-1549.13,9.271e-05,2]
[347514556,1735897857941,-1549.13,9.271e-05,2]
[347514557,1735897857950,-637.38,9.271e-05,2]
[347514558,1735897857959,-500.0,9.272e-05,2]
[347514559,1735897857968,-500.0,9.272e-05,2]
[347514560,1735897857978,-500.0,9.272e-05,2]
[347514561,1735897857988,-500.0,9.272e-05,2]
[347514562,1735897857997,-500.0,9.272e-05,2]
[347514563,1735897858007,-539.0,9.272e-05,2]
[347514564,1735897858015,-500.0,9.272e-05,2]
[347514565,1735897858025,-1190.1,9.272e-05,2]
[347514566,1735897858034,-500.94860844,9.272e-05,2]
[347514567,1735897858043,-1175.31,9.272e-05,2]
[347514568,1735897858052,-500.0,9.272e-05,2]
[347514569,1735897858061,-500.0,9.272e-05,2]
[347514570,1735897858070,-500.0,9.272e-05,2]
[347514571,1735897858079,-1791.27,9.272e-05,2]
[347514572,1735897858088,-501.06908336,9.272e-05,2]
[347514573,1735897858097,-500.0,9.272e-05,2]
[347514574,1735897858107,-500.0,9.272e-05,2]
[347514575,1735897858119,-500.0,9.272e-05,2]
[347514576,1735897858127,-500.0,9.272e-05,2]
[347514577,1735897858136,-500.0,9.272e-05,2]
[347514578,1735897858145,-1241.72,9.272e-05,2]
[347514579,1735897858155,-500.0,9.272e-05,2]
[347514580,1735897858164,-500.0,9.272e-05,2]
[347514581,1735897858173,-500.0,9.272e-05,2]
[347514582,1735897858182,-500.0,9.272e-05,2]
[347514583,1735897858193,-753.46,9.272e-05,2]
[347514584,1735897858204,-500.0,9.272e-05,2]
[347514585,1735897858213,-500.0,9.272e-05,2]
[347514586,1735897858222,-500.0,9.272e-05,2]
[347514587,1735897858231,-327.32330093,9.272e-05,2]
[347514588,1735897858243,-500.0,9.272e-05,2]
[347514589,1735897858252,-1696.05,9.272e-05,2]
[347514590,1735897858261,-500.0,9.272e-05,2]
[347514591,1735897858270,-500.0,9.272e-05,2]
[347514592,1735897858280,-186.1108865,9.272e-05,2]
[347514593,1735897858289,-234.97731723,9.272e-05,2]
[347514594,1735897858298,-888.69,9.272e-05,2]
[347514595,1735897858307,-500.0,9.272e-05,7]
[347514596,1735897858316,-1221.53,9.272e-05,2]
[347514597,1735897858325,-1205.31,9.272e-05,2]
[347514598,1735897858335,-1924.82,9.272e-05,2]
[347514599,1735897858343,-683.94,9.272e-05,2]
[347514600,1735897858352,-684.65,9.272e-05,2]
[347514601,1735897858361,-1217.93,9.272e-05,2]
[347514602,1735897858371,-500.0,9.272e-05,2]
[347514603,1735897858380,-1825.57,9.272e-05,2]
[347514604,1735897858389,-1097.87,9.272e-05,2]
[347514605,1735897858398,-500.0,9.272e-05,2]
[347514606,1735897858407,-727.72,9.272e-05,2]
[347514607,1735897858416,-556.29,9.272e-05,2]
[347514608,1735897858426,-597.18,9.272e-05,2]
[347514609,1735897858435,-502.39348283,9.272e-05,2]
[347514610,1735897858444,-570.65,9.272e-05,2]
[347514611,1735897858453,-795.58,9.272e-05,2]
[347514612,1735897858462,-2623.63,9.272e-05,2]
[347514613,1735897858471,-527.33,9.272e-05,2]
[347514614,1735897858480,-780.31,9.272e-05,2]
[347514615,1735897858490,-957.3,9.272e-05,2]
[347514616,1735897858499,-500.0,9.272e-05,2]
[347514617,1735897858508,-1034.1,9.272e-05,2]
[347514618,1735897858518,-500.0,9.272e-05,2]
[347514619,1735897858527,-500.0,9.272e-05,2]
[347514620,1735897858536,-500.0,9.272e-05,2]
[347514621,1735897858545,-500.0,9.272e-05,2]
[347514622,1735897858554,-2002.66,9.272e-05,2]
[347514623,1735897858563,-683.33,9.272e-05,2]
[347514624,1735897858573,-500.0,9.272e-05,2]
[347514625,1735897858582,-500.0,9.272e-05,2]
[347514626,1735897858591,-524.33,9.272e-05,2]
[347514627,1735897858601,-500.0,9.272e-05,2]
[347514628,1735897858611,-916.29,9.272e-05,2]
[347514629,1735897858621,-500.0,9.272e-05,2]
[347514630,1735897858630,-500.0,9.272e-05,2]
[347514631,1735897858639,-1157.28,9.272e-05,2]
[347514632,1735897858648,-500.0,9.272e-05,2]
[347514633,1735897858657,-500.0,9.272e-05,2]
[347514634,1735897858666,-500.0,9.272e-05,2]
[347514635,1735897858675,-500.0,9.272e-05,2]
[347514636,1735897858685,-651.92,9.272e-05,2]
[347514637,1735897858694,-1202.27,9.272e-05,2]
[347514638,1735897858703,-1443.69,9.272e-05,2]
[347514639,1735897858712,-1298.7,9.272e-05,2]
[347514640,1735897858722,-500.0,9.272e-05,2]
[347514641,1735897858731,-500.0,9.272e-05,2]
[347514642,1735897858742,-500.0,9.272e-05,2]
[347514643,1735897858751,-513.45,9.272e-05,2]
[347514644,1735897858762,-500.0,9.272e-05,2]
[347514645,1735897858771,-500.0,9.272e-05,2]
[347514646,1735897858780,-500.0,9.272e-05,2]
[347514647,1735897858789,-500.0,9.272e-05,2]
[347514648,1735897858798,-500.0,9.272e-05,2]
[347514649,1735897858807,-975.65,9.272e-05,2]
[347514650,1735897858816,-500.0,9.272e-05,2]
[347514651,1735897858825,-1235.66,9.272e-05,2]
[347514652,1735897858834,-1260.46,9.272e-05,2]
[347514653,1735897858843,-500.0,9.272e-05,2]
[347514654,1735897858852,-561.40399219,9.272e-05,2]
[347514655,1735897858861,-500.0,9.272e-05,2]
[347514656,1735897858870,-1103.6,9.272e-05,2]
[347514657,1735897858879,-500.0,9.272e-05,2]
[347514658,1735897858888,-501.51881691,9.272e-05,2]
[347514659,1735897858897,-500.0,9.272e-05,2]
[347514660,1735897858905,-500.0,9.272e-05,2]
[347514661,1735897858914,-500.0,9.272e-05,2]
[347514662,1735897858923,-547.68,9.272e-05,2]
[347514663,1735897858932,-500.0,9.272e-05,2]
[347514664,1735897858941,-500.0,9.272e-05,2]
[347514665,1735897858950,-503.04233668,9.272e-05,2]
[347514666,1735897858959,-958.78,9.272e-05,2]
[347514667,1735897858968,-1059.11,9.272e-05,2]
[347514668,1735897858977,-500.0,9.272e-05,2]
[347514669,1735897858986,-500.0,9.272e-05,2]
[347514670,1735897858996,-734.65,9.272e-05,2]
[347514671,1735897859005,-500.0,9.272e-05,2]
[347514672,1735897859016,-500.0,9.272e-05,2]
[347514673,1735897859025,-500.0,9.272e-05,2]
[347514674,1735897859035,-736.3,9.272e-05,2]
[347514675,1735897859044,-500.0,9.272e-05,2]
[347514676,1735897859053,-500.0,9.272e-05,2]
[347514677,1735897859063,-500.0,9.272e-05,2]
[347514678,1735897859072,-500.0,9.272e-05,2]
[347514679,1735897859081,-794.45,9.272e-05,2]
[347514680,1735897859090,-500.0,9.272e-05,2]
[347514681,1735897859099,-500.0,9.272e-05,2]
[347514682,1735897859108,-500.0,9.272e-05,2]
[347514683,1735897859120,-815.99,9.272e-05,2]
[347514684,1735897859129,-1502.02,9.272e-05,2]
[347514685,1735897859138,-500.0,9.272e-05,2]
[347514686,1735897859146,-500.0,9.272e-05,2]
[347514687,1735897859156,-1222.16,9.272e-05,2]
[347514688,1735897859165,-723.11,9.272e-05,2]
[347514689,1735897859174,-500.0,9.272e-05,2]
[347514690,1735897859183,-500.0,9.272e-05,2]
[347514691,1735897859194,-1428.34,9.272e-05,2]
[347514692,1735897859205,-500.0,9.272e-05,2]
[347514693,1735897859216,-500.0,9.272e-05,2]
[347514694,1735897859226,-500.0,9.272e-05,2]
[347514695,1735897859235,-502.34422616,9.272e-05,2]
[347514696,1735897859245,-150.93115895,9.272e-05,2]
[347514697,1735897859254,-649.75896811,9.272e-05,2]
[347514698,1735897859264,-1550.47331404,9.272e-05,2]
[347514699,1735897859276,-1427.34,9.272e-05,2]
[347514700,1735897859286,-4641.84,9.272e-05,2]
[347514701,1735897859298,-548.38,9.272e-05,2]
[347514702,1735897859309,-500.0,9.272e-05,2]
[347514703,1735897859321,-1206.62,9.272e-05,2]
[347514704,1735897859332,-1162.21,9.272e-05,2]
[347514705,1735897859342,-6158.26,9.272e-05,2]
[347514706,1735897859351,-504.54659048,9.272e-05,2]
[347514707,1735897859363,-502.99303659,9.272e-05,2]
[347514708,1735897859371,-500.0,9.272e-05,2]
[347514709,1735897859381,-500.0,9.272e-05,2]
[347514710,1735897859390,-500.0,9.272e-05,2]
[347514711,1735897859399,-1275.88,9.272e-05,2]
[347514712,1735897859408,-500.0,9.272e-05,2]
[347514713,1735897859418,-500.0,9.272e-05,2]
[347514714,1735897859427,-500.0,9.272e-05,2]
[347514715,1735897859437,-1324.87,9.272e-05,2]
[347514716,1735897859448,-500.0,9.272e-05,2]
[347514717,1735897859457,-1135.37,9.272e-05,2]
[347514718,1735897859466,-500.0,9.272e-05,2]
[347514719,1735897859475,-918.35,9.272e-05,2]
[347514720,1735897859485,-6841.13,9.272e-05,2]
[347514721,1735897859495,-500.0,9.272e-05,2]
[347514722,1735897859504,-1935.03,9.272e-05,2]
[347514723,1735897859514,-823.6,9.272e-05,2]
[347514724,1735897859524,-1694.23,9.272e-05,2]
[347514725,1735897859532,-1613.06,9.272e-05,2]
[347514726,1735897859541,-500.0,9.272e-05,2]
[347514727,1735897859552,-5296.48,9.272e-05,2]
[347514728,1735897859561,-1939.7,9.272e-05,2]
[347514729,1735897859570,-500.0,9.272e-05,2]
[347514730,1735897859580,-1162.3,9.272e-05,2]
[347514731,1735897859590,-2021.28,9.272e-05,2]
[347514732,1735897859601,-1549.13,9.272e-05,2]
[347514733,1735897859610,-500.0,9.272e-05,2]
[347514734,1735897859619,-3076.62,9.272e-05,2]
[347514735,1735897859629,-500.0,9.273e-05,2]
[347514736,1735897859638,-2017.83,9.273e-05,2]
[347514737,1735897859647,-500.0,9.273e-05,2]
[347514738,1735897859657,-500.0,9.273e-05,2]
[347514739,1735897859666,-685.46,9.273e-05,2]
[347514740,1735897859675,-150.0,9.283e-05,2]
[347514741,1735897859684,-1250.0,9.284e-05,2]
[347514742,1735897859693,-1250.0,9.284e-05,2]
[347514743,1735897859703,-150.0,9.288e-05,2]
[347514744,1735897859713,-150.0,9.296e-05,2]
[347514745,1735897859723,-150.0,9.319e-05,2]
[347514746,1735897859954,-150.0,9.334e-05,2]
[347514747,1735897859964,-150.0,9.35e-05,2]
[347514748,1735897859974,-1778.86,9.375e-05,2]
[347514749,1735897859984,-500.0,9.375e-05,2]
[347514750,1735897859993,-500.0,9.376e-05,2]
[347514751,1735897860002,-3085.84,9.376e-05,2]
[347514752,1735897860011,-3489.47,9.376e-05,2]
[347514753,1735897860022,-500.0,9.376e-05,2]
[347514754,1735897860031,-1214.53,9.376e-05,2]
[347514755,1735897860041,-3216.75,9.376e-05,2]
[347514756,1735897860050,-2477.49,9.376e-05,2]
[347514757,1735897860060,-500.0,9.376e-05,2]
[347514758,1735897860070,-2993.69,9.376e-05,2]
[347514759,1735897860080,-2524.86,9.376e-05,2]
[347514760,1735897860089,-150.0,9.38e-05,2]
[347514761,1735897860099,-1057.0,9.382e-05,2]
[347514762,1735897860109,-150.0,9.384e-05,2]
[347514763,1735897860120,-500.0,9.408e-05,2]
[347514764,1735897860130,-150.0,9.411e-05,2]
[347514765,1735897860139,-150.0,9.415e-05,2]
[347514766,1735897860148,-421.17167474,9.426e-05,2]
[347514767,1735897860159,-150.0,9.434e-05,2]
[347514768,1735897860168,-150.0,9.442e-05,2]
[347514769,1735897860177,-150.0,9.473e-05,2]
[347514770,1735897860187,-5168.457,9.478e-05,2]
[347514771,1735897860197,-184.946,9.478e-05,2]
[347514772,1735897860207,-150.0,9.484e-05,2]
[347514773,1735897860216,-150.0,9.503e-05,2]
[347514774,1735897860225,-1268.786,9.511e-05,2]
[347514775,1735897860234,-2014.0,9.511e-05,2]
[347514776,1735897860245,-566.0,9.511e-05,2]
[347514777,1735897860253,-641.338,9.511e-05,2]
[347514778,1735897860262,-257.053,9.511e-05,2]
[347514779,1735897860272,-1859.0,9.511e-05,2]
[347514780,1735897860282,-1258.0,9.511e-05,2]
[347514781,1735897860291,-819.0,9.511e-05,2]
[347514782,1735897860300,-3775.0,9.511e-05,2]
[347514783,1735897860309,-918.0,9.511e-05,2]
[347514784,1735897860318,-3721.0,9.511e-05,2]
[347514785,1735897860327,-536.0,9.511e-05,2]
[347514786,1735897860336,-9612.0,9.511e-05,2]
[347514787,1735897860345,-1172.0,9.511e-05,2]
[347514788,1735897860354,-150.0,9.511e-05,2]
[347514789,1735897860363,-150.0,9.511e-05,2]
[347514790,1735897860372,-3893.0,9.511e-05,2]
[347514791,1735897860382,-500.0,9.523e-05,2]
[347514792,1735897860391,-150.0,9.534e-05,2]
[347514793,1735897860400,-150.0,9.534e-05,2]
[347514794,1735897860409,-150.0,9.534e-05,2]
[347514795,1735897860418,-150.0,9.534e-05,2]
[347514796,1735897860427,-1549.13,9.539e-05,2]
[347514797,1735897860436,-1248.41,9.542e-05,2]
[347514798,1735897860445,-6574.02,9.542e-05,2]
[347514799,1735897860455,-10321.7,9.542e-05,2]
[347514800,1735897860464,-2702.28,9.542e-05,2]
[347514801,1735897860472,-6403.77,9.542e-05,2]
[347514802,1735897860482,-2306.34,9.542e-05,2]
[347514803,1735897860491,-5858.91,9.542e-05,2]
[347514804,1735897860502,-1264.66,9.542e-05,2]
[347514805,1735897860511,-643.57,9.542e-05,2]
[347514806,1735897860520,-1122.48,9.542e-05,2]
[347514807,1735897860529,-500.0,9.543e-05,2]
[347514808,1735897860538,-3256.86,9.543e-05,2]
[347514809,1735897860548,-500.0,9.543e-05,2]
[347514810,1735897860558,-2490.62,9.543e-05,2]
[347514811,1735897860567,-543.13,9.543e-05,2]
[347514812,1735897860578,-500.0,9.543e-05,2]
[347514813,1735897860587,-2331.2,9.543e-05,2]
[347514814,1735897860597,-500.0,9.543e-05,2]
[347514815,1735897860606,-1042.51,9.543e-05,2]
[347514816,1735897860618,-500.0,9.543e-05,2]
[347514817,1735897860627,-820.27,9.543e-05,2]
[347514818,1735897860637,-500.0,9.543e-05,2]
[347514819,1735897860647,-1368.34,9.543e-05,2]
[347514820,1735897860658,-2734.34,9.543e-05,2]
[347514821,1735897860667,-2365.28,9.543e-05,2]
[347514822,1735897860676,-2370.47,9.543e-05,2]
[347514823,1735897860684,-2339.09,9.543e-05,2]
[347514824,1735897860693,-657.87,9.543e-05,2]
[347514825,1735897860702,-887.02,9.543e-05,2]
[347514826,1735897860711,-1410.2,9.543e-05,2]
[347514827,1735897860719,-500.0,9.543e-05,2]
[347514828,1735897860728,-1339.42,9.543e-05,2]
[347514829,1735897860737,-500.0,9.543e-05,2]
[347514830,1735897860748,-1408.28,9.543e-05,2]
[347514831,1735897860757,-521.83,9.543e-05,2]
[347514832,1735897860767,-501.11803821,9.543e-05,2]
[347514833,1735897860775,-500.0,9.543e-05,2]
[347514834,1735897860784,-500.0,9.543e-05,2]
[347514835,1735897860793,-2247.98,9.543e-05,2]
[347514836,1735897860802,-538.11,9.543e-05,2]
[347514837,1735897860811,-1040.57,9.543e-05,2]
[347514838,1735897860820,-4191.21,9.543e-05,2]
[347514839,1735897860830,-2974.69,9.543e-05,2]
[347514840,1735897860840,-500.0,9.543e-05,2]
[347514841,1735897860849,-3373.87,9.543e-05,2]
[347514842,1735897860859,-500.0,9.543e-05,2]
[347514843,1735897860870,-1797.59,9.543e-05,2]
[347514844,1735897860880,-2652.7,9.543e-05,2]
[347514845,1735897860890,-2801.81,9.543e-05,2]
[347514846,1735897860899,-767.7,9.543e-05,2]
[347514847,1735897860909,-500.0,9.543e-05,2]
[347514848,1735897860919,-956.73,9.543e-05,2]
[347514849,1735897860929,-2794.75,9.543e-05,2]
[347514850,1735897860938,-500.0,9.543e-05,2]
[347514851,1735897860947,-1419.02,9.543e-05,2]
[347514852,1735897860956,-763.65,9.543e-05,2]